bitfinex/quotes_BTCUSD_20250619
["timestamp","ask_amount","ask_price","bid_price","bid_amount"]
[1750348485320,0.72623327,104260.0,104250.0,0.28692275]
[1750348485778,0.80232077,104260.0,104250.0,0.19484652]
[1750348485997,0.80232077,104260.0,104250.0,0.20443884]
[1750348486413,0.87232077,104260.0,104250.0,0.21403107]
[1750348486626,0.80232077,104260.0,104250.0,0.21403107]
[1750348487092,0.80232077,104260.0,104250.0,0.22362321]
[1750348489694,0.80232077,104260.0,104250.0,0.23321526]
[1750348489920,0.30628068,104260.0,104250.0,0.23321526]
[1750348490127,0.80232077,104260.0,104250.0,0.30530657]
[1750348490544,0.10486088,104260.0,104250.0,0.30530602]
[1750348491015,0.00959076,104260.0,104250.0,0.30530602]
[1750348491227,1.08216191,104270.0,104260.0,0.27241028]
[1750348491228,0.38472,104270.0,104260.0,0.27241028]
[1750348491467,0.04472,104270.0,104260.0,0.77804113]
[1750348491704,0.04472,104270.0,104260.0,0.28200104]
[1750348491938,0.04472,104270.0,104260.0,0.44432104]
[1750348492653,0.04572,104270.0,104260.0,0.44432104]
[1750348494046,0.04572,104270.0,104260.0,0.94036113]
[1750348494255,0.04572,104270.0,104260.0,0.94436113]
[1750348494739,0.04472,104270.0,104260.0,0.94436113]
[1750348494952,0.04472,104270.0,104260.0,0.94636113]
[1750348496067,0.04472,104270.0,104260.0,0.45032104]
[1750348497126,0.04472,104270.0,104260.0,0.44632104]
[1750348497364,0.04472,104270.0,104260.0,0.45032104]
[1750348497587,0.04472,104270.0,104260.0,0.28800104]
[1750348497822,0.05430965,104270.0,104260.0,0.44824104]
[1750348498046,0.04472,104270.0,104260.0,0.45124104]
[1750348500704,0.05430965,104270.0,104260.0,0.45124104]
[1750348501586,0.04472,104270.0,104260.0,0.45128104]
[1750348502213,0.05430965,104270.0,104260.0,0.45128104]
[1750348502694,0.04472,104270.0,104260.0,0.54655089]
[1750348502901,0.04472,104270.0,104260.0,1.04259098]
[1750348506379,5e-05,104280.0,104270.0,0.22058006]
[1750348506625,5e-05,104280.0,104270.0,0.77732015]
[1750348507479,5e-05,104280.0,104270.0,0.80606418]
[1750348507690,5e-05,104280.0,104270.0,0.82684027]
[1750348508969,5e-05,104280.0,104270.0,0.82784027]
[1750348509178,5e-05,104280.0,104270.0,0.8565843]
[1750348511091,5e-05,104280.0,104270.0,0.86701036]
[1750348511519,5e-05,104280.0,104270.0,0.85652798]
[1750348512575,5e-05,104280.0,104270.0,0.96634776]
[1750348514310,5e-05,104280.0,104270.0,1.00467313]
[1750348514522,5e-05,104280.0,104270.0,1.01516372]
[1750348517543,5e-05,104280.0,104270.0,0.98647601]
[1750348520773,5e-05,104280.0,104270.0,1.04396407]
[1750348521212,5e-05,104280.0,104270.0,1.20524407]
[1750348521639,5e-05,104280.0,104270.0,1.20508407]
[1750348522289,5e-05,104280.0,104270.0,1.04396407]
[1750348522499,5e-05,104280.0,104270.0,1.14759601]
[1750348523571,5e-05,104280.0,104270.0,0.98647601]
[1750348523782,5e-05,104280.0,104270.0,1.14751601]
[1750348523991,5e-05,104280.0,104270.0,1.1762098]
[1750348524204,5e-05,104280.0,104270.0,1.14751601]
[1750348527066,5e-05,104280.0,104270.0,1.14651601]
[1750348527289,5e-05,104280.0,104270.0,1.20700407]
[1750348527511,5e-05,104280.0,104270.0,1.21200407]
[1750348532761,5e-05,104280.0,104270.0,1.1736787]
[1750348533201,0.04312,104310.0,104300.0,0.22051644]
[1750348533418,0.05270616,104310.0,104300.0,0.43300758]
[1750348533864,0.0622925,104310.0,104300.0,0.43300758]
[1750348534493,0.04312,104310.0,104300.0,0.99234767]
[1750348534704,0.04412,104310.0,104300.0,0.99234767]
[1750348535137,1.14629258,104330.0,104320.0,0.21088928]
[1750348535359,1.29366651,104330.0,104320.0,0.21088928]
[1750348536001,1.30420189,104330.0,104320.0,0.21088928]
[1750348536239,1.36740189,104330.0,104320.0,0.21088928]
[1750348536449,1.37040189,104330.0,104320.0,0.21088928]
[1750348536659,1.37040189,104330.0,104320.0,0.2204748]
[1750348537070,1.32728189,104330.0,104320.0,0.2204748]
[1750348538840,1.3704011,104330.0,104320.0,0.21088928]
[1750348539068,0.00958662,104310.0,104300.0,0.07141331]
[1750348539290,0.00958662,104310.0,104290.0,0.30102957]
[1750348539291,0.00958781,104290.0,104280.0,0.20137658]
[1750348539499,0.00958781,104290.0,104280.0,0.21096605]
[1750348539712,0.66440628,104300.0,104290.0,0.20136149]
[1750348539931,0.06104848,104300.0,104290.0,0.22053813]
[1750348540169,0.05207425,104300.0,104290.0,0.21094995]
[1750348540376,0.74945707,104300.0,104290.0,0.21094995]
[1750348540591,0.02875931,104310.0,104300.0,0.20134209]
[1750348540810,0.0622926,104310.0,104300.0,0.21092954]
[1750348541029,0.0622926,104310.0,104300.0,0.23010398]
[1750348541244,0.56791912,104310.0,104300.0,0.23010398]
[1750348541467,0.55833259,104310.0,104300.0,0.23010398]
[1750348541673,0.54874625,104310.0,104300.0,0.23010398]
[1750348541876,0.5583325,104310.0,104300.0,0.23010398]
[1750348542297,0.56791894,104310.0,104300.0,0.23010398]
[1750348542515,0.07187885,104310.0,104300.0,0.23010398]
[1750348542731,0.57750546,104310.0,104300.0,0.23010398]
[1750348543161,0.06229241,104310.0,104300.0,0.23010398]
[1750348543367,0.05270616,104310.0,104300.0,0.23010398]
[1750348543794,0.0622926,104310.0,104300.0,0.23010398]
[1750348544062,0.07187913,104310.0,104300.0,0.23010398]
[1750348544270,0.8645125,104310.0,104300.0,0.20138209]
[1750348544482,0.92002606,104310.0,104300.0,4e-05]
[1750348544693,1.50175855,104310.0,104300.0,4e-05]
[1750348544926,1.08469243,104310.0,104300.0,4e-05]
[1750348545138,1.92073252,104310.0,104300.0,4e-05]
[1750348546000,1.76748875,104310.0,104300.0,4e-05]
[1750348547106,0.63701459,104310.0,104300.0,4e-05]
[1750348547326,1.17617468,104310.0,104300.0,4e-05]
[1750348549068,1.17617377,104310.0,104300.0,4e-05]
[1750348549509,1.67221386,104310.0,104300.0,4e-05]
[1750348550153,1.53092212,104310.0,104300.0,4e-05]
[1750348550385,0.83543476,104310.0,104300.0,4e-05]
[1750348550601,1.82751494,104310.0,104300.0,4e-05]
[1750348551022,1.77604086,104310.0,104300.0,4e-05]
[1750348551460,1.78276573,104310.0,104300.0,4e-05]
[1750348552132,1.77604086,104310.0,104300.0,4e-05]
[1750348552800,1.78276609,104310.0,104300.0,4e-05]
[1750348553007,1.77603892,104310.0,104300.0,4e-05]
[1750348553185,1.79606178,104310.0,104300.0,4e-05]
[1750348553421,1.78933892,104310.0,104300.0,4e-05]
[1750348554711,1.79606173,104310.0,104300.0,4e-05]
[1750348554925,7.00898173,104310.0,104300.0,4e-05]
[1750348555136,7.49948173,104310.0,104300.0,4e-05]
[1750348555346,7.49948063,104310.0,104300.0,4e-05]
[1750348555780,7.49947696,104310.0,104300.0,4e-05]
[1750348556550,7.49275486,104310.0,104300.0,4e-05]
[1750348557055,7.49275268,104310.0,104300.0,4e-05]
[1750348557551,7.4994732,104310.0,104300.0,4e-05]
[1750348557780,7.49275268,104310.0,104300.0,4e-05]
[1750348559724,7.49275335,104310.0,104300.0,4e-05]
[1750348560457,7.49351335,104310.0,104300.0,4e-05]
[1750348562153,7.50023208,104310.0,104300.0,4e-05]
[1750348562362,7.50023217,104310.0,104300.0,4e-05]
[1750348562575,7.49351335,104310.0,104300.0,4e-05]
[1750348562781,7.49351044,104310.0,104300.0,4e-05]
[1750348564277,7.49351058,104310.0,104300.0,4e-05]
[1750348565314,7.50023149,104310.0,104300.0,4e-05]
[1750348566165,7.16023149,104310.0,104300.0,4e-05]
[1750348567228,7.16023497,104310.0,104300.0,4e-05]
[1750348567858,7.18905097,104310.0,104300.0,4e-05]
[1750348568510,7.52905097,104310.0,104300.0,4e-05]
[1750348569363,7.52615097,104310.0,104300.0,4e-05]
[1750348569831,7.51718923,104310.0,104300.0,4e-05]
[1750348570044,7.35307985,104310.0,104300.0,4e-05]
[1750348570258,7.51527985,104310.0,104300.0,4e-05]
[1750348571324,7.52567985,104310.0,104300.0,4e-05]
[1750348571970,7.52568073,104310.0,104300.0,4e-05]
[1750348572177,7.52858073,104310.0,104300.0,4e-05]
[1750348572688,7.52858073,104310.0,104270.0,0.062]
[1750348572689,0.02784085,104300.0,104270.0,0.062]
[1750348572900,0.54141934,104260.0,104250.0,0.0303]
[1750348573120,2.06645845,104260.0,104250.0,0.0001]
[1750348573403,2.1043963,104260.0,104250.0,0.0001]
[1750348573694,2.10423852,104260.0,104250.0,0.0664]
[1750348573952,1.70346828,104260.0,104250.0,0.0664]
[1750348575918,2.19950837,104260.0,104250.0,0.0664]
[1750348576866,1.20742819,104260.0,104250.0,0.0664]
[1750348577128,2.19950837,104260.0,104250.0,0.0664]
[1750348577333,1.70346828,104260.0,104250.0,0.0664]
[1750348578444,1.20741579,104260.0,104250.0,0.0664]
[1750348578668,1.61769716,104260.0,104250.0,0.0664]
[1750348578877,1.37264949,104260.0,104250.0,0.26783884]
[1750348579087,1.57996949,104260.0,104250.0,0.07599232]
[1750348579341,1.57037836,104260.0,104250.0,0.0664]
[1750348579812,1.66564821,104260.0,104250.0,0.0664]
[1750348580869,2.17062361,104260.0,104250.0,0.0001]
[1750348581078,2.17062354,104260.0,104250.0,0.0001]
[1750348581287,7.22062354,104260.0,104250.0,0.0001]
[1750348582120,7.2116883,104260.0,104250.0,0.0001]
[1750348582956,7.2116883,104260.0,104250.0,0.0328]
[1750348583170,7.2116883,104260.0,104250.0,0.0001]
[1750348583605,7.2405153,104260.0,104250.0,0.0001]
[1750348583857,6.74447521,104260.0,104250.0,0.0654]
[1750348584302,7.2405153,104260.0,104250.0,0.0654]
[1750348585094,6.24843512,104260.0,104250.0,0.0654]
[1750348585342,7.2405153,104260.0,104250.0,0.0654]
[1750348586109,6.24843512,104260.0,104250.0,0.0654]
[1750348586287,7.2405153,104260.0,104250.0,0.0654]
[1750348587865,6.58127521,104260.0,104250.0,0.0654]
[1750348588059,6.74415521,104260.0,104250.0,0.0654]
[1750348588510,6.74411521,104260.0,104250.0,0.0654]
[1750348588716,6.53715521,104260.0,104250.0,0.0654]
[1750348588934,6.74411521,104260.0,104250.0,0.0654]
[1750348589283,6.74419521,104260.0,104250.0,0.0654]
[1750348589941,6.53715521,104260.0,104250.0,0.0654]
[1750348590155,6.74415521,104260.0,104250.0,0.0654]
[1750348590371,6.39456399,104260.0,104250.0,0.0654]
[1750348590581,1.04229414,104260.0,104250.0,0.26683875]
[1750348590795,1.06147639,104260.0,104250.0,0.2764307]
[1750348591039,0.84082072,104260.0,104250.0,0.28602238]
[1750348591466,1.24916006,104260.0,104250.0,0.28602238]
[1750348591686,1.23956976,104260.0,104250.0,0.25724652]
[1750348591960,1.25501679,104260.0,104250.0,0.0654]
[1750348592387,1.25501679,104260.0,104250.0,0.26683884]
[1750348592848,1.25501679,104260.0,104250.0,0.27643098]
[1750348593717,1.25501679,104260.0,104250.0,0.28602303]
[1750348594148,1.25501679,104260.0,104250.0,0.27643098]
[1750348595050,1.59501679,104260.0,104250.0,0.27643098]
[1750348595477,1.59501679,104260.0,104250.0,0.28602303]
[1750348595691,1.59501679,104260.0,104250.0,0.26683884]
[1750348595912,1.58542539,104260.0,104250.0,0.26683884]
[1750348596148,2.08146548,104260.0,104250.0,0.0654]
[1750348596859,2.11029048,104260.0,104250.0,0.0654]
[1750348597496,1.62318555,104260.0,104250.0,0.0654]
[1750348598394,1.62318597,104260.0,104250.0,0.0654]
[1750348598864,7.16922606,104260.0,104250.0,0.0654]
[1750348599084,7.16922606,104260.0,104250.0,0.0333]
[1750348599758,7.16922606,104260.0,104250.0,0.0001]
[1750348601001,7.17595543,104260.0,104250.0,0.0001]
[1750348601176,7.17595544,104260.0,104250.0,0.0001]
[1750348601524,7.17595544,104260.0,104250.0,0.0625]
[1750348601748,7.18635544,104260.0,104250.0,0.0001]
[1750348601954,7.26170423,104260.0,104250.0,0.0001]
[1750348602265,7.18738279,104260.0,104250.0,0.0001]
[1750348602472,7.21608871,104260.0,104250.0,0.0001]
[1750348603413,7.21608871,104260.0,104220.0,0.0641]
[1750348603414,0.40147731,104230.0,104220.0,0.0641]
[1750348603637,6.64062627,104230.0,104220.0,0.0002]
[1750348603855,6.15130412,104230.0,104220.0,0.0659]
[1750348604079,6.15130417,104230.0,104220.0,0.0659]
[1750348604310,5.68410108,104230.0,104220.0,0.0659]
[1750348604515,5.96690318,104230.0,104220.0,0.0659]
[1750348604734,6.18014123,104230.0,104220.0,0.0659]
[1750348605187,6.18214123,104230.0,104220.0,0.0659]
[1750348605423,6.19254833,104230.0,104220.0,0.0659]
[1750348605874,6.18583028,104230.0,104220.0,0.0659]
[1750348606085,6.18783028,104230.0,104220.0,0.0659]
[1750348606761,0.35630545,104230.0,104220.0,0.25780174]
[1750348606989,0.47852303,104230.0,104220.0,0.26739682]
[1750348607208,0.60122404,104230.0,104220.0,0.29618096]
[1750348607430,0.25163043,104230.0,104220.0,0.29618096]
[1750348607665,0.22279343,104230.0,104220.0,0.29618096]
[1750348607878,1.06842722,104230.0,104220.0,0.29618096]
[1750348608091,1.0780212,104230.0,104220.0,0.29618096]
[1750348608321,0.72842722,104230.0,104220.0,0.29618096]
[1750348608544,1.06842722,104230.0,104220.0,0.29618096]
[1750348609665,1.0780212,104230.0,104220.0,0.29618096]
[1750348610132,0.86882111,104230.0,104220.0,0.29618096]
[1750348610364,1.07786111,104230.0,104220.0,0.29618096]
[1750348610580,1.06826722,104230.0,104220.0,0.29618096]
[1750348610792,1.07786111,104230.0,104220.0,0.29618096]
[1750348611194,1.06822722,104230.0,104220.0,0.29618096]
[1750348611448,1.07782111,104230.0,104220.0,0.29618096]
[1750348612093,0.90342722,104230.0,104220.0,0.29618096]
[1750348612350,0.57206704,104230.0,104220.0,0.29618096]
[1750348612559,1.05851352,104230.0,104220.0,0.29618096]
[1750348612763,1.06810722,104230.0,104220.0,0.29618096]
[1750348613009,0.85922722,104230.0,104220.0,0.29618096]
[1750348613212,1.06802713,104230.0,104220.0,0.29618096]
[1750348613348,0.85922713,104230.0,104220.0,0.29618096]
[1750348613556,0.89383352,104230.0,104220.0,0.29618096]
[1750348613741,0.90342713,104230.0,104220.0,0.29618096]
[1750348614561,0.3882,104230.0,104220.0,0.34596055]
[1750348614974,0.3882,104230.0,104220.0,0.29618096]
[1750348616428,0.344,104230.0,104220.0,0.29618096]
[1750348616629,0.3882,104230.0,104220.0,0.29618096]
[1750348617354,0.3882,104230.0,104220.0,0.29346096]
[1750348617554,0.0482,104230.0,104220.0,0.29346096]
[1750348617789,0.004,104230.0,104220.0,0.29346096]
[1750348618016,0.0482,104230.0,104220.0,0.29346096]
[1750348618195,0.004,104230.0,104220.0,0.78950105]
[1750348618615,0.004,104230.0,104220.0,0.29346096]
[1750348619414,0.002,104230.0,104220.0,0.29346096]
[1750348619853,0.045,104240.0,104230.0,0.22066471]
[1750348620053,0.87542043,104250.0,104240.0,0.22064354]
[1750348620266,0.87542043,104250.0,104240.0,0.25274354]
[1750348620267,0.83604009,104250.0,104240.0,0.25274354]
[1750348620465,1.04516009,104250.0,104240.0,0.28304354]
[1750348620725,0.88104009,104250.0,104240.0,0.28304354]
[1750348620931,0.54104009,104250.0,104240.0,0.28304354]
[1750348621134,0.045,104250.0,104240.0,0.28304354]
[1750348621508,0.54304009,104250.0,104240.0,0.28304354]
[1750348621717,0.047,104250.0,104240.0,0.28304354]
[1750348621928,0.049,104250.0,104240.0,0.28304354]
[1750348622374,0.004,104250.0,104240.0,0.28304354]
[1750348622599,0.004,104250.0,104240.0,0.87435348]
[1750348623712,1.10324272,104270.0,104260.0,0.28160122]
[1750348623971,1.29505244,104270.0,104260.0,0.26241943]
[1750348624187,1.20718307,104270.0,104260.0,0.26241943]
[1750348624428,1.20718307,104270.0,104260.0,0.27201065]
[1750348624655,1.20718307,104270.0,104260.0,0.30078339]
[1750348624656,0.9201035,104270.0,104260.0,0.30078339]
[1750348624877,1.11191322,104270.0,104260.0,0.30078339]
[1750348625114,0.61587313,104270.0,104260.0,0.30078339]
[1750348625330,0.91051256,104270.0,104260.0,0.30078339]
[1750348625554,0.92010286,104270.0,104260.0,0.30078339]
[1750348625783,0.40488198,104270.0,104260.0,0.30078339]
[1750348626010,0.42406175,104270.0,104260.0,0.30078339]
[1750348626227,0.91251182,104270.0,104260.0,0.30078339]
[1750348626444,0.92210175,104270.0,104260.0,0.30078339]
[1750348626663,0.92410175,104270.0,104260.0,0.30078339]
[1750348627091,0.93369196,104270.0,104260.0,0.30078339]
[1750348627336,0.93369186,104270.0,104260.0,0.30078339]
[1750348627546,0.92410175,104270.0,104260.0,0.30078339]
[1750348627784,0.43765177,104270.0,104260.0,0.30078339]
[1750348628005,0.87910175,104270.0,104260.0,0.30078339]
[1750348628273,0.92410175,104270.0,104260.0,0.30078339]
[1750348628499,0.93369196,104270.0,104260.0,0.30078339]
[1750348628929,0.92410175,104270.0,104260.0,0.30078339]
[1750348629163,0.93369177,104270.0,104260.0,0.30078339]
[1750348629575,0.94328198,104270.0,104260.0,0.30078339]
[1750348629787,0.93369177,104270.0,104260.0,0.30078339]
[1750348630634,0.44724189,104270.0,104260.0,0.30078339]
[1750348630858,0.94328198,104270.0,104260.0,0.30078339]
[1750348632362,0.94328263,104270.0,104260.0,0.30078339]
[1750348632572,0.93369233,104270.0,104260.0,0.30078339]
[1750348633508,0.92410212,104270.0,104260.0,0.30078339]
[1750348633933,0.93369233,104270.0,104260.0,0.30078339]
[1750348634152,0.90492207,104270.0,104260.0,0.30078339]
[1750348634367,0.91451191,104270.0,104260.0,0.30078339]
[1750348634803,0.90492207,104270.0,104260.0,0.30078339]
[1750348635443,0.91451191,104270.0,104260.0,0.30078339]
[1750348636569,0.53182812,104260.0,104240.0,0.19186492]
[1750348636801,0.70441934,104260.0,104250.0,0.26493875]
[1750348637058,1.21005037,104260.0,104250.0,0.26493875]
[1750348637269,1.21964177,104260.0,104250.0,0.26493866]
[1750348637478,1.21964177,104260.0,104250.0,0.26493875]
[1750348637688,1.31491162,104260.0,104250.0,0.26493875]
[1750348637897,1.31491162,104260.0,104250.0,0.2745308]
[1750348638431,1.31491162,104260.0,104250.0,0.28412275]
[1750348638840,0.65282052,104260.0,104250.0,0.29371443]
[1750348639050,0.6720024,104260.0,104250.0,0.29371443]
[1750348639940,0.40418152,104260.0,104250.0,0.29371443]
[1750348640147,0.39459067,104260.0,104250.0,0.29371443]
[1750348640585,0.385,104260.0,104250.0,0.45671443]
[1750348640802,0.045,104260.0,104250.0,0.95275452]
[1750348643346,0.01918179,104260.0,104250.0,0.27452997]
[1750348643594,0.01918133,104260.0,104250.0,0.45659415]
[1750348644214,0.02877227,104260.0,104250.0,0.29371415]
[1750348644430,0.02877227,104260.0,104250.0,0.45655415]
[1750348644639,0.0383634,104260.0,104250.0,0.45655415]
[1750348645708,0.88399471,104260.0,104250.0,0.45643415]
[1750348645928,0.97926456,104260.0,104250.0,0.0635]
[1750348646197,1.16150275,104260.0,104250.0,0.28412266]
[1750348646412,1.13272946,104260.0,104250.0,0.28412266]
[1750348646827,1.13272946,104260.0,104250.0,0.29371443]
[1750348647039,0.63668937,104260.0,104250.0,0.29371443]
[1750348648131,0.36877559,104250.0,104240.0,0.27625067]
[1750348648348,0.36877559,104250.0,104240.0,0.43881067]
[1750348648553,0.36877559,104250.0,104240.0,0.44840418]
[1750348648554,0.5702136,104250.0,104240.0,0.44840418]
[1750348648780,0.56062211,104250.0,104240.0,0.45799696]
[1750348648983,0.55103052,104250.0,104240.0,0.45795734]
[1750348649400,0.55103052,104250.0,104240.0,0.46095734]
[1750348649616,0.359184,104250.0,104240.0,0.47054957]
[1750348650250,0.00959159,104250.0,104240.0,0.3861629]
[1750348650454,0.00959159,104250.0,104240.0,0.4476629]
[1750348650662,0.01918336,104250.0,104240.0,0.4476629]
[1750348651074,0.01918336,104250.0,104240.0,0.4475429]
[1750348651290,0.02877522,104250.0,104240.0,0.4475429]
[1750348651732,0.03836727,104250.0,104240.0,0.4475429]
[1750348651944,0.02877522,104250.0,104240.0,0.4475429]
[1750348653445,0.01918336,104250.0,104240.0,0.4475429]
[1750348654105,0.02877531,104250.0,104240.0,0.4475429]
[1750348654950,0.01918336,104250.0,104240.0,0.4475429]
[1750348655184,0.02877522,104250.0,104240.0,0.4475429]
[1750348655601,0.03836717,104250.0,104240.0,0.4475429]
[1750348655822,0.02877522,104250.0,104240.0,0.4475429]
[1750348656029,0.01918336,104250.0,104240.0,0.4475429]
[1750348656453,0.02877522,104250.0,104240.0,0.4475429]
[1750348656868,0.00959159,104250.0,104240.0,0.4475429]
[1750348657075,0.01918336,104250.0,104240.0,0.4475429]
[1750348657297,0.00959149,104250.0,104240.0,0.4475429]
[1750348657516,0.55101046,104260.0,104250.0,0.28502238]
[1750348657517,0.34959076,104260.0,104250.0,0.28502238]
[1750348657739,0.34959057,104260.0,104250.0,0.78106247]
[1750348658149,0.35918133,104260.0,104250.0,0.78106247]
[1750348658578,0.34,104260.0,104250.0,0.28502238]
[1750348659279,0.34959067,104260.0,104250.0,0.28502238]
[1750348659499,0.35918152,104260.0,104250.0,0.28502238]
[1750348659715,0.34959067,104260.0,104250.0,0.28502238]
[1750348660576,0.35918152,104260.0,104250.0,0.28502238]
[1750348660791,0.34959067,104260.0,104250.0,0.28502238]
[1750348661010,0.41959067,104260.0,104250.0,0.28502238]
[1750348661435,0.41,104260.0,104250.0,0.28502238]
[1750348661852,0.42918152,104260.0,104250.0,0.28502238]
[1750348662269,0.41959067,104260.0,104250.0,0.28502238]
[1750348662476,0.42918143,104260.0,104250.0,0.28502238]
[1750348663104,0.41,104260.0,104250.0,0.28502238]
[1750348663318,0.41959067,104260.0,104250.0,0.28502238]
[1750348663538,0.42918143,104260.0,104250.0,0.28502238]
[1750348663954,0.41959067,104260.0,104250.0,0.28502238]
[1750348664172,0.42918152,104260.0,104250.0,0.28502238]
[1750348664392,0.41959067,104260.0,104250.0,0.28502238]
[1750348664612,0.41,104260.0,104250.0,0.28502238]
[1750348664834,0.41959057,104260.0,104250.0,0.28502238]
[1750348665257,0.42918142,104260.0,104250.0,0.28502238]
[1750348665497,0.44836376,104260.0,104250.0,0.45629425]
[1750348665721,0.44836376,104260.0,104250.0,0.44690229]
[1750348665722,1.24109322,104260.0,104250.0,0.44690229]
[1750348666398,1.24109322,104260.0,104250.0,0.28502229]
[1750348666624,1.24109322,104260.0,104250.0,0.29461397]
[1750348666833,1.03967361,104260.0,104250.0,0.29461397]
[1750348667683,1.03967361,104260.0,104250.0,0.29465397]
[1750348668756,1.04926492,104260.0,104250.0,0.29465397]
[1750348669839,1.03967361,104260.0,104250.0,0.29465397]
[1750348670279,0.94440376,104260.0,104250.0,0.29465397]
[1750348670731,0.43877245,104260.0,104250.0,0.29465397]
[1750348670938,0.44836367,104260.0,104250.0,0.29465397]
[1750348671974,0.45795498,104260.0,104250.0,0.29465397]
[1750348673259,0.64978393,104260.0,104250.0,0.29465397]
[1750348673470,0.64978393,104260.0,104250.0,0.28506229]
[1750348673903,0.68099884,104260.0,104250.0,0.29465397]
[1750348674121,0.47957932,104260.0,104250.0,0.29465397]
[1750348674368,0.44836441,104260.0,104250.0,0.29465397]
[1750348674802,0.41,104260.0,104250.0,0.79069406]
[1750348675031,0.07,104260.0,104250.0,0.29465397]
[1750348675246,0.07,104260.0,104250.0,0.79069406]
[1750348675680,0.07,104260.0,104250.0,0.29465397]
[1750348677567,0.07,104260.0,104250.0,0.79069406]
[1750348677778,0.07,104260.0,104250.0,0.88596391]
[1750348678210,0.07,104260.0,104250.0,0.91472872]
[1750348680598,0.07,104260.0,104250.0,0.32341878]
[1750348680818,0.07,104260.0,104250.0,0.81945887]
[1750348681030,0.07,104260.0,104250.0,0.32341878]
[1750348681231,0.07,104260.0,104250.0,0.29465397]
[1750348681451,0.07,104260.0,104250.0,0.45581397]
[1750348683594,0.56604009,104260.0,104250.0,0.45573397]
[1750348683798,0.07,104260.0,104250.0,0.45573397]
[1750348684209,0.07959057,104260.0,104250.0,0.45573397]
[1750348684910,0.07,104260.0,104250.0,0.45573397]
[1750348686241,0.07959057,104260.0,104250.0,0.45573397]
[1750348687084,0.07,104260.0,104250.0,0.45573397]
[1750348687719,0.72621105,104270.0,104260.0,0.27201065]
[1750348687926,0.01918142,104260.0,104250.0,0.28166156]
[1750348688129,0.52481264,104260.0,104250.0,0.44262156]
[1750348688347,0.31513582,104260.0,104250.0,0.43311034]
[1750348688564,0.31513582,104260.0,104250.0,0.44270202]
[1750348689185,0.33431761,104260.0,104250.0,0.45229434]
[1750348689396,0.34390846,104260.0,104250.0,0.45229434]
[1750348690458,0.34390846,104260.0,104250.0,0.29125434]
[1750348691082,0.53573658,104260.0,104250.0,0.29125434]
[1750348691290,0.54532789,104260.0,104250.0,0.29125434]
[1750348691505,0.34390846,104260.0,104250.0,0.29125434]
[1750348691713,0.35349977,104260.0,104250.0,0.29125434]
[1750348691921,0.33431724,104260.0,104250.0,0.29125434]
[1750348692129,0.33431714,104260.0,104250.0,0.29125434]
[1750348692586,0.02877245,104260.0,104250.0,0.29125434]
[1750348692798,0.52481254,104260.0,104250.0,0.29125434]
[1750348694526,0.02877245,104260.0,104250.0,0.29125434]
[1750348694742,0.52481254,104260.0,104250.0,0.29125434]
[1750348695161,0.52481254,104260.0,104250.0,0.29125434]
[1750348695370,0.51522151,104260.0,104250.0,0.29125434]
[1750348695580,0.52481245,104260.0,104250.0,0.29125434]
[1750348695995,0.51522151,104260.0,104250.0,0.29125434]
[1750348696210,0.52481254,104260.0,104250.0,0.29125434]
[1750348696426,0.53440376,104260.0,104250.0,0.29125434]
[1750348696658,0.73582319,104260.0,104250.0,0.27207089]
[1750348696862,0.72623262,104260.0,104250.0,0.28166284]
[1750348697114,0.81191162,104260.0,104250.0,0.26247866]
[1750348697327,0.81191162,104260.0,104250.0,0.27207071]
[1750348697548,1.23759952,104260.0,104250.0,4e-05]
[1750348697761,1.25277001,104260.0,104250.0,4e-05]
[1750348697982,6.33159501,104260.0,104250.0,4e-05]
[1750348698187,6.8276351,104260.0,104250.0,4e-05]
[1750348698374,6.33159501,104260.0,104250.0,4e-05]
[1750348698633,5.83555492,104260.0,104250.0,4e-05]
[1750348698852,6.53023501,104260.0,104250.0,4e-05]
[1750348699769,6.02379492,104260.0,104250.0,4e-05]
[1750348700014,6.51983501,104260.0,104250.0,4e-05]
[1750348700435,6.22052516,104260.0,104250.0,4e-05]
[1750348700670,6.42468516,104260.0,104250.0,4e-05]
[1750348701591,6.42467367,104260.0,104250.0,4e-05]
[1750348702236,6.42612345,104260.0,104250.0,4e-05]
[1750348702880,6.41572345,104260.0,104250.0,4e-05]
[1750348703100,6.5109933,104260.0,104250.0,4e-05]
[1750348703553,6.26985772,104260.0,104250.0,4e-05]
[1750348703764,6.46168584,104260.0,104250.0,4e-05]
[1750348704417,6.47208584,104260.0,104250.0,4e-05]
[1750348705131,6.48103433,104260.0,104250.0,4e-05]
[1750348705997,6.48643433,104260.0,104250.0,4e-05]
[1750348706272,7.01155119,104260.0,104250.0,4e-05]
[1750348706494,6.98247442,104260.0,104250.0,4e-05]
[1750348706762,6.48643433,104260.0,104250.0,4e-05]
[1750348707205,6.48843433,104260.0,104250.0,4e-05]
[1750348707886,6.98447442,104260.0,104250.0,4e-05]
[1750348708102,5.99239424,104260.0,104250.0,4e-05]
[1750348708557,6.49143433,104260.0,104250.0,4e-05]
[1750348708783,6.28727433,104260.0,104250.0,4e-05]
[1750348708998,6.49119433,104260.0,104250.0,4e-05]
[1750348709218,6.48224584,104260.0,104250.0,4e-05]
[1750348709476,6.49118785,104260.0,104250.0,4e-05]
[1750348709707,6.33050785,104260.0,104250.0,4e-05]
[1750348709956,6.49114785,104260.0,104250.0,4e-05]
[1750348710370,6.47534785,104260.0,104250.0,4e-05]
[1750348710579,6.48574785,104260.0,104250.0,4e-05]
[1750348710996,6.49114785,104260.0,104250.0,4e-05]
[1750348711209,6.48574785,104260.0,104250.0,4e-05]
[1750348711643,6.49114785,104260.0,104250.0,4e-05]
[1750348711844,6.98164785,104260.0,104250.0,4e-05]
[1750348712050,6.97270584,104260.0,104250.0,4e-05]
[1750348712260,6.98116962,104260.0,104250.0,4e-05]
[1750348712465,7.47720971,104260.0,104250.0,4e-05]
[1750348714838,7.47180971,104260.0,104250.0,4e-05]
[1750348715096,6.96536962,104260.0,104250.0,4e-05]
[1750348715311,6.96536868,104260.0,104250.0,4e-05]
[1750348717495,7.19580868,104260.0,104250.0,4e-05]
[1750348718180,6.99240868,104260.0,104250.0,4e-05]
[1750348718406,6.99240868,104260.0,104250.0,0.06304]
[1750348718658,7.19556868,104260.0,104250.0,0.06304]
[1750348718929,7.19556868,104260.0,104250.0,4e-05]
[1750348720937,7.19557348,104260.0,104250.0,4e-05]
[1750348722206,7.70201357,104260.0,104250.0,4e-05]
[1750348722830,7.69161357,104260.0,104250.0,4e-05]
[1750348723501,7.68266593,104260.0,104250.0,4e-05]
[1750348723713,7.69162022,104260.0,104250.0,4e-05]
[1750348725402,7.69162022,104260.0,104250.0,0.06194]
[1750348726027,7.19558013,104260.0,104250.0,0.06194]